bitfinex/quotes_SOLUSD_20241222
["timestamp","ask_amount","ask_price","bid_price","bid_amount"]
[1734884249234,20.0,182.28,182.2,8.0947]
[1734884249425,23.776884,182.27,182.2,8.0947]
[1734884249839,20.0,182.3,182.2,8.0947]
[1734884250317,23.776884,182.32,182.2,8.0947]
[1734884251222,23.776884,182.32,182.2,50.81772295]
[1734884251423,9.5963,182.37,182.21,42.72302295]
[1734884251635,23.776884,182.33,182.22,42.72302295]
[1734884252351,102.3557517,182.42,182.22,42.72302295]
[1734884252352,9.5942,182.41,182.25,66.49990695]
[1734884252655,9.5942,182.41,182.27,6.5371]
[1734884254028,0.6642517,182.42,182.29,66.49990695]
[1734884254221,0.6642517,182.42,182.3,42.72302295]
[1734884254636,0.6642517,182.42,182.28,1.5576]
[1734884255642,33.370584,182.41,182.28,1.5576]
[1734884255847,23.776884,182.37,182.28,1.5576]
[1734884256647,20.0,182.38,182.28,1.5576]
[1734884257139,0.6642517,182.42,182.28,1.5576]
[1734884257354,0.6642517,182.42,182.3,62.72302295]
[1734884257539,0.6642517,182.42,182.31,23.776884]
[1734884257718,0.6642517,182.42,182.3,13.7136]
[1734884258349,0.6642517,182.42,182.34,49.26012295]
[1734884259241,0.6642517,182.42,182.35,67.32221141]
[1734884259450,0.6642517,182.42,182.36,1.5576]
[1734884260148,0.6642517,182.42,182.37,20.0]
[1734884260352,0.6642517,182.42,182.39,66.49990695]
[1734884260650,0.6642517,182.6,182.49,20.0]
[1734884260829,0.6642517,182.6,182.5,23.776884]
[1734884261037,0.6642517,182.6,182.51,6.5975]
[1734884263237,0.6642517,182.6,182.45,1.5576]
[1734884263238,20.0,182.56,182.46,6.5975]
[1734884263853,20.0,182.52,182.46,6.5975]
[1734884264036,2.2222797,182.59,182.46,6.5975]
[1734884264236,20.0,182.57,182.46,6.5975]
[1734884264449,2.2222797,182.59,182.46,6.5975]
[1734884264956,2.2222797,182.59,182.47,23.776884]
[1734884265461,2.2222797,182.59,182.5,20.0]
[1734884266434,2.2222797,182.59,182.47,23.776884]
[1734884266636,2.2222797,182.59,182.5,20.0]
[1734884267235,2.2222797,182.59,182.51,20.0]
[1734884268357,2.2222797,182.59,182.5,20.0]
[1734884269026,2.2222797,182.59,182.48,42.72302295]
[1734884269231,2.2222797,182.59,182.46,6.5975]
[1734884269232,20.0,182.58,182.46,6.5975]
[1734884269654,20.0,182.58,182.46,49.32052295]
[1734884269847,20.0,182.58,182.47,3.7472048]
[1734884270161,20.0,182.55,182.47,3.7472048]
[1734884270457,9.5848,182.58,182.47,3.7472048]
[1734884270768,23.776884,182.54,182.41,6.5975]
[1734884270930,20.0,182.51,182.41,6.5975]
[1734884271354,23.776884,182.5,182.41,6.5975]
[1734884271560,23.776884,182.5,182.42,3.75820121]
[1734884271729,20.0,182.47,182.42,3.75820121]
[1734884271926,20.0,182.51,182.42,3.75820121]
[1734884272125,20.0,182.47,182.39,1.5263]
[1734884272556,29.5908,182.47,182.39,1.5263]
[1734884272926,19.1769,182.52,182.39,1.5263]
[1734884272927,20.0,182.48,182.39,1.5263]
[1734884273741,20.0,182.48,182.36,49.08502295]
[1734884273742,20.0,182.44,182.36,6.362]
[1734884273936,28.7658,182.51,182.36,6.362]
[1734884274137,20.0,182.48,182.36,49.08502295]
[1734884274339,9.5888,182.51,182.39,42.72302295]
[1734884274643,23.776884,182.53,182.37,4.59007901]
[1734884274950,23.776884,182.53,182.39,42.72302295]
[1734884275145,23.776884,182.53,182.39,20.0]
[1734884275350,23.776884,182.53,182.4,3.76789633]
[1734884275860,23.776884,182.51,182.4,3.76789633]
[1734884276075,23.776884,182.51,182.37,42.72302295]
[1734884276475,20.0,182.48,182.36,49.08502295]
[1734884276661,20.0,182.48,182.38,3.77110966]
[1734884277272,20.0,182.48,182.36,6.362]
[1734884277979,23.776884,182.51,182.37,46.49653629]
[1734884278352,9.589,182.5,182.37,46.49653629]
[1734884278679,9.589,182.5,182.38,3.77351334]
[1734884278855,20.0,182.46,182.38,3.77351334]
[1734884279258,20.0,182.46,182.36,6.362]
[1734884279463,23.776884,182.45,182.36,6.362]
[1734884279660,20.0,182.47,182.36,6.362]
[1734884279975,33.368184,182.46,182.36,6.362]
[1734884280485,33.368184,182.46,182.33,1.6032]
[1734884280486,20.0,182.43,182.33,1.6032]
[1734884280857,9.5913,182.46,182.34,46.50409412]
[1734884281071,23.776884,182.45,182.34,46.50409412]
[1734884281278,23.776884,182.45,182.34,3.78107117]
[1734884281579,9.5921,182.44,182.35,3.78107117]
[1734884282289,9.5921,182.44,182.36,3.78107117]
[1734884282652,9.5921,182.44,182.33,44.32622295]
[1734884282848,9.5907,182.47,182.34,42.72302295]
[1734884283049,9.5907,182.47,182.33,1.6032]
[1734884283267,6.2425,182.54,182.36,66.49990695]
[1734884283465,9.589,182.5,182.37,42.72302295]
[1734884283668,9.589,182.5,182.35,3.78760156]
[1734884284078,9.589,182.5,182.34,42.72302295]
[1734884284079,9.589,182.5,182.37,42.72302295]
[1734884284258,9.5876,182.53,182.39,42.72302295]
[1734884284454,9.5876,182.53,182.41,42.72302295]
[1734884284759,9.5876,182.53,182.4,3.78760156]
[1734884285376,9.5876,182.53,182.41,3.78760156]
[1734884285580,20.0,182.5,182.41,3.78760156]
[1734884285758,9.5876,182.53,182.41,3.78760156]
[1734884285956,9.5876,182.53,182.39,42.72302295]
[1734884286355,9.5876,182.53,182.4,3.79109519]
[1734884286966,9.5876,182.53,182.41,3.79109519]
[1734884287182,20.0,182.5,182.41,3.79109519]
[1734884287371,9.5876,182.53,182.4,42.72302295]
[1734884287881,9.5876,182.53,182.38,56.43052295]
[1734884288065,9.5876,182.53,182.37,42.72302295]
[1734884288257,9.5876,182.53,182.39,42.72302295]
[1734884288785,23.776884,182.52,182.4,3.79588038]
[1734884289192,9.5885,182.51,182.4,3.79588038]
[1734884289560,9.5885,182.51,182.41,3.79588038]
[1734884289975,23.776884,182.5,182.41,3.79588038]
[1734884290184,23.776884,182.5,182.42,3.79588038]
[1734884290376,9.5885,182.51,182.42,3.79588038]
[1734884290583,9.5885,182.51,182.37,42.72302295]
[1734884290768,23.776884,182.5,182.35,62.72302295]
[1734884290968,9.5885,182.51,182.37,42.72302295]
[1734884291190,23.776884,182.53,182.4,42.72302295]
[1734884291486,20.0,182.51,182.38,20.0]
[1734884291662,20.0,182.51,182.38,42.72302295]
[1734884291864,20.0,182.51,182.39,3.80144142]
[1734884292175,20.0,182.51,182.39,46.52446437]
[1734884292583,20.0,182.51,182.4,3.80144142]
[1734884293179,9.5871,182.54,182.42,48.84952295]
[1734884293373,9.5854,182.57,182.44,42.72302295]
[1734884293574,9.5854,182.57,182.44,43.54486365]
[1734884293888,9.5854,182.57,182.43,5.42224142]
[1734884294101,9.5854,182.57,182.45,3.80144142]
[1734884294570,20.0,182.54,182.46,3.80144142]
[1734884294972,20.0,182.54,182.43,1.6208]
[1734884295167,20.0,182.54,182.43,44.34382295]
[1734884295366,20.0,182.55,182.43,45.16572583]
[1734884295598,20.0,182.55,182.44,3.81031704]
[1734884295792,6.5718,182.58,182.44,46.53333999]
[1734884296174,6.5718,182.58,182.45,3.81031704]
[1734884296383,6.5718,182.58,182.45,30.60752497]
[1734884296692,6.5718,182.58,182.46,25.97536775]
[1734884296895,6.5718,182.58,182.46,29.78568479]
[1734884297297,6.5718,182.58,182.47,3.81031704]
[1734884297668,2.2222797,182.59,182.47,30.60743658]
[1734884297868,2.2222797,182.59,182.48,29.78568479]
[1734884298367,2.2222797,182.59,182.49,3.81031704]
[1734884298788,2.2222797,182.59,182.5,25.97536775]
[1734884298972,2.2222797,182.59,182.5,29.78568479]
[1734884299295,2.2222797,182.59,182.5,3.81031704]
[1734884299494,2.2222797,182.59,182.52,20.0]
[1734884299701,2.2222797,182.59,182.52,6.1265]
[1734884300198,2.2222797,182.59,182.53,3.81031704]
[1734884300800,2.2222797,182.59,182.54,3.81031704]
[1734884301094,2.2222797,182.59,182.54,45.98723633]
[1734884301290,2.2222797,182.59,182.55,42.17691929]
[1734884301584,2.2222797,182.59,182.55,3.81031704]
[1734884302183,2.2222797,182.59,182.56,3.81031704]
[1734884302610,2.2222797,182.59,182.56,45.98723633]
[1734884303110,2.2222797,182.59,182.57,45.98723633]
[1734884303477,2.2222797,182.59,182.57,59.68053633]
[1734884303679,2.2222797,182.59,182.58,3.81031704]
[1734884303894,2.2222797,182.59,182.58,45.98723633]
[1734884304980,2.2222797,182.59,182.58,69.76412033]
[1734884305793,2.2222797,182.59,182.58,45.98723633]
[1734884306508,2.2222797,182.59,182.58,3.81031704]
[1734884306677,2.2222797,182.59,182.58,45.98723633]
[1734884307706,2.2222797,182.59,182.58,69.76412033]
[1734884308513,6.1548,182.75,182.62,20.0]
[1734884308680,2.3036517,182.78,182.68,42.17691929]
[1734884308886,2.3036517,182.78,182.69,42.17691929]
[1734884309579,2.3036517,182.78,182.68,42.17691929]
[1734884310698,2.3036517,182.78,182.67,42.17691929]
[1734884310884,2.3036517,182.78,182.68,42.17691929]
[1734884311300,2.3036517,182.78,182.69,42.17691929]
[1734884311486,0.6642517,182.78,182.7,42.17691929]
[1734884312319,0.6642517,182.78,182.69,42.17691929]
[1734884312789,0.6642517,182.78,182.68,42.17691929]
[1734884312989,0.6642517,182.78,182.68,62.17691929]
[1734884313604,0.6642517,182.78,182.69,0.82076812]
[1734884314202,0.6642517,182.78,182.69,42.99768741]
[1734884314404,0.6642517,182.78,182.72,20.0]
[1734884314606,0.6642517,182.78,182.71,42.99756935]
[1734884314806,0.6642517,182.78,182.72,42.17691929]
[1734884315003,0.6642517,182.78,182.74,42.17691929]
[1734884315197,0.6642517,182.78,182.75,42.99744704]
[1734884315401,0.6642517,182.78,182.76,42.17691929]
[1734884315604,0.6642517,182.78,182.73,64.59415604]
[1734884316007,0.6642517,182.78,182.71,42.17691929]
[1734884316194,0.6642517,182.78,182.72,42.17691929]
[1734884316704,0.6642517,182.78,182.72,42.9975338]
[1734884317358,0.6642517,182.78,182.73,42.17691929]
[1734884317512,0.6642517,182.78,182.72,42.9975338]
[1734884317992,0.6642517,182.78,182.73,42.17691929]
[1734884318707,0.6642517,182.78,182.72,42.17691929]
[1734884318911,0.6642517,182.78,182.73,20.0]
[1734884319124,0.6642517,182.78,182.72,42.17691929]
[1734884319417,0.6642517,182.78,182.73,20.82064477]
[1734884319907,0.6642517,182.78,182.74,42.17691929]
[1734884320497,0.6642517,182.78,182.75,42.99746466]
[1734884320821,0.6642517,182.78,182.76,42.17691929]
[1734884321424,0.6642517,182.78,182.77,42.99732442]
[1734884321931,0.6642517,182.78,182.77,106.96054371]
[1734884322112,20.0,182.87,182.86,25.85225703]
[1734884322422,1.6148,183.0,182.86,25.85225703]
[1734884322728,1.6148,183.0,182.89,25.85225703]
[1734884323127,0.1642517,182.96,182.91,25.85225703]
[1734884323328,0.1642517,182.96,182.93,25.85225703]
[1734884324315,0.1642517,182.96,182.93,41.98624658]
[1734884324504,0.1642517,182.96,182.93,42.80584458]
[1734884324701,0.1642517,182.96,182.95,41.98624658]
[1734884324906,0.1642517,182.96,182.95,42.8058147]
[1734884325730,5.17e-05,182.96,182.95,66.7081887]
[1734884326512,9.88505296,183.02,182.99,26.5362]
[1734884326730,7.96746346,183.02,183.01,41.98624658]
[1734884327054,7.96746346,183.02,182.99,41.98624658]
[1734884327341,7.96746346,183.02,182.96,42.8056902]
[1734884327506,7.96746346,183.02,182.97,41.98624658]
[1734884327709,7.96746346,183.02,182.99,41.98624658]
[1734884327906,7.96746346,183.02,183.0,41.98624658]
[1734884328207,7.96746346,183.02,182.99,42.80561426]
[1734884328443,7.96746346,183.02,183.01,41.98624658]
[1734884328653,7.96746346,183.02,183.0,41.98624658]
[1734884329358,7.96746346,183.02,183.01,41.98624658]
[1734884329655,6.50501048,183.02,183.01,66.58243233]
[1734884329855,10.0,183.13,183.03,20.0]
[1734884330152,10.0,183.13,183.03,86.58221944]
[1734884330526,10.0,183.13,183.03,100.24111944]
[1734884330836,10.0,183.13,183.03,99.42203058]
[1734884331558,10.0,183.13,183.03,75.64514658]
[1734884331947,10.0,183.13,183.03,41.98624658]
[1734884332331,1.6148,183.12,183.0,41.98624658]
[1734884332528,1.6148,183.12,182.99,41.98624658]
[1734884332763,1.6148,183.12,183.01,41.98624658]
[1734884333462,1.6148,183.12,183.02,41.98624658]
[1734884333667,1.6148,183.12,183.03,41.98624658]
[1734884333954,10.0,183.13,183.03,41.98624658]
[1734884336172,10.0,183.13,183.02,41.98624658]
[1734884336559,10.0,183.13,183.01,41.98624658]
[1734884336873,9.5566,183.12,183.0,41.98624658]
[1734884337050,9.5566,183.12,182.99,41.98624658]
[1734884337533,9.5566,183.12,182.98,41.98624658]
[1734884337740,10.0,183.13,182.97,41.98624658]
[1734884337741,6.0097,183.07,182.97,41.98624658]
[1734884338246,15.5693,183.07,182.94,41.98624658]
[1734884338446,6.0097,183.07,182.92,41.98624658]
[1734884338644,33.338084,183.03,182.92,41.98624658]
[1734884338958,33.338084,183.03,182.9,41.98624658]
[1734884339167,33.338084,183.03,182.91,41.98624658]
[1734884339538,20.0,183.0,182.88,41.98624658]
[1734884339859,23.776884,182.99,182.86,41.98624658]
[1734884340164,7.6245,182.98,182.84,41.98624658]
[1734884340467,23.776884,182.97,182.83,41.98624658]
[1734884340662,23.776884,182.97,182.84,41.98624658]
[1734884340835,23.776884,182.97,182.79,55.66304658]
[1734884340836,7.6245,182.98,182.89,41.98624658]
[1734884341439,23.776884,183.02,182.91,41.98624658]
[1734884341666,23.776884,183.03,182.91,41.98624658]
[1734884342164,23.776884,183.03,182.9,41.98624658]
[1734884342346,23.776884,183.03,182.89,41.98624658]
[1734884342548,23.776884,183.01,182.87,41.98624658]
[1734884342747,23.776884,183.01,182.89,41.98624658]
[1734884343065,23.776884,183.03,182.91,41.98624658]
[1734884343460,16.345,183.04,182.96,41.98624658]
[1734884343684,10.0,183.04,182.97,41.98624658]
[1734884343890,10.0,182.99,182.94,0.81952014]
[1734884344060,10.0,182.99,182.98,41.98624658]
[1734884344472,10.0,182.99,182.97,41.98624658]
[1734884344766,10.0,182.99,182.95,41.98624658]
[1734884345075,10.0,182.99,182.94,41.98624658]
[1734884345288,10.0,182.99,182.98,41.98624658]
[1734884346096,4.5729,182.99,182.98,42.80576077]
[1734884346401,10.0,183.04,183.01,20.0]
[1734884346563,10.0,183.04,183.03,41.98624658]
[1734884347589,10.0,183.04,183.03,55.64514658]
[1734884347790,5.0498,183.04,183.03,55.64514658]
[1734884348164,5.0498,183.04,183.03,41.98624658]
[1734884348363,5.0498,183.04,183.03,45.69205373]
[1734884349192,5.0498,183.04,183.03,3.70580715]
[1734884349859,5.0498,183.04,182.99,41.98624658]
[1734884350081,5.0498,183.04,183.03,41.98624658]
[1734884352579,5.0498,183.04,183.03,45.70246166]
[1734884352784,10.0,183.13,183.06,20.0]
[1734884353093,10.0,183.13,183.07,24.53517445]
[1734884353280,10.0,183.13,183.07,23.71621508]
[1734884353603,10.0,183.13,183.07,3.71621508]
[1734884353785,10.0,183.13,183.08,3.71621508]
[1734884354396,10.0,183.13,183.07,41.98624658]
[1734884354601,10.0,183.13,183.06,3.71621508]
[1734884355172,10.0,183.13,183.08,3.71621508]
[1734884355698,10.0,183.13,183.04,3.71621508]
[1734884356089,23.776884,183.1,183.04,3.71621508]
[1734884356419,23.776884,183.06,182.99,3.71621508]
[1734884356780,23.776884,183.06,182.9,41.98624658]
[1734884356781,20.0,183.03,182.91,3.71621508]
[1734884357075,6.345,183.01,182.91,3.71621508]
[1734884357285,1.6417,182.99,182.91,3.71621508]
[1734884357490,20.0,182.97,182.91,3.71621508]
[1734884357689,6.345,183.01,182.84,3.71621508]
[1734884357875,23.776884,183.0,182.85,41.98624658]
[1734884358196,20.0,182.94,182.86,3.71621508]
[1734884358702,1.6417,182.93,182.8,3.71621508]
[1734884358911,1.6417,182.93,182.83,41.98624658]
[1734884359072,20.0,182.98,182.83,41.98624658]
[1734884359279,23.776884,182.97,182.84,3.71621508]
[1734884359675,34.707984,182.97,182.84,3.71621508]
[1734884359869,34.707984,182.97,182.85,3.71621508]
[1734884360109,23.776884,182.97,182.85,3.71621508]
[1734884360601,23.776884,182.97,182.86,3.71621508]
[1734884360820,34.707584,182.97,182.86,3.71621508]
[1734884361171,34.707584,182.97,182.79,20.0]
[1734884361172,23.776884,182.93,182.79,41.98624658]
[1734884361397,23.776884,182.93,182.74,6.97705796]
[1734884361398,23.776884,182.93,182.77,41.98624658]
[1734884361582,23.776884,182.93,182.8,3.75537197]
[1734884361783,23.776884,182.91,182.8,3.75537197]
[1734884362099,20.0,182.86,182.8,3.75537197]
[1734884362278,23.776884,182.85,182.8,3.75537197]
[1734884362481,23.776884,182.85,182.81,3.75537197]
[1734884362880,23.776884,182.85,182.71,41.98624658]
[1734884363474,23.776884,182.85,182.72,3.75537197]
[1734884364385,1.5342,182.88,182.73,46.56230157]
[1734884364699,23.776884,182.87,182.74,3.75537197]
[1734884364902,34.713584,182.87,182.74,3.75537197]
[1734884365085,23.776884,182.83,182.75,3.75537197]
[1734884365802,23.776884,182.83,182.72,3.75537197]
[1734884366499,23.776884,182.83,182.7,3.75537197]
[1734884367083,23.776884,182.83,182.71,3.75537197]
[1734884367804,23.776884,182.83,182.7,3.75537197]
[1734884368095,23.776884,182.83,182.67,41.98624658]
[1734884368397,23.776884,182.81,182.63,48.01384658]
[1734884368599,23.776884,182.76,182.63,41.98624658]
[1734884368977,23.776884,182.76,182.64,3.75209499]
[1734884369501,23.776884,182.76,182.63,41.98624658]
[1734884369672,1.5342,182.77,182.65,41.98624658]
[1734884370695,1.5342,182.77,182.67,41.98624658]
[1734884370877,17.2598,182.82,182.69,41.98624658]
[1734884371081,17.2598,182.82,182.66,41.98624658]
[1734884371502,17.2598,182.82,182.65,41.98624658]
[1734884371685,17.2598,182.82,182.66,41.98624658]
[1734884372079,20.0,182.79,182.67,41.98624658]
[1734884372301,6.3201,182.82,182.7,41.98624658]
[1734884372690,6.3201,182.82,182.66,41.98624658]
[1734884372894,10.9403,182.81,182.66,41.98624658]
[1734884373085,10.9403,182.81,182.64,41.98624658]
[1734884373494,10.9403,182.81,182.64,41.41558851]
[1734884373702,23.776884,182.77,182.64,41.41558851]
[1734884374893,23.776884,182.75,182.61,41.98624658]
[1734884375095,6.3201,182.73,182.6,41.98624658]
[1734884376106,23.776884,182.72,182.59,42.80739063]
[1734884376588,6.3201,182.73,182.63,41.98624658]
[1734884376786,6.3201,182.73,182.65,41.98624658]
[1734884377106,6.3201,182.73,182.66,42.80713449]
[1734884377293,6.3201,182.73,182.61,41.98624658]
[1734884377294,1.5342,182.74,182.65,41.98624658]
[1734884378005,1.5342,182.74,182.66,41.98624658]
[1734884378506,1.5342,182.79,182.69,41.98624658]
[1734884378720,1.5342,182.79,182.71,41.98624658]
[1734884379608,1.5342,182.84,182.74,41.98624658]
[1734884380001,1.5342,182.84,182.74,42.80673725]
[1734884380213,1.5342,182.84,182.71,42.80674648]
[1734884380789,1.5342,182.84,182.7,55.66954658]
[1734884380989,1.5342,182.84,182.69,48.83453049]
[1734884381289,23.776884,182.83,182.67,0.82065632]
[1734884381503,20.0,182.8,182.65,41.98624658]
[1734884381716,23.776884,182.79,182.65,41.98624658]
[1734884381911,23.776884,182.77,182.64,41.98624658]
[1734884382095,23.776884,182.77,182.63,41.98624658]
[1734884382416,23.776884,182.77,182.65,41.98624658]
[1734884382614,17.6002,182.78,182.65,41.98624658]
[1734884382795,6.6576,182.78,182.68,41.98624658]
[1734884382995,6.6576,182.78,182.69,41.98624658]
[1734884383604,1.5342,182.84,182.74,41.98624658]
[1734884384117,1.5342,182.84,182.7,41.98624658]
[1734884385097,23.776884,182.83,182.7,41.98624658]
[1734884385305,23.776884,182.83,182.69,41.98624658]
[1734884385915,23.776884,182.83,182.7,41.98624658]
[1734884386413,21.5342,182.84,182.72,41.98624658]
[1734884386613,23.776884,182.83,182.71,41.98624658]
[1734884387028,1.5342,182.84,182.73,41.98624658]
[1734884387231,1.5342,182.84,182.75,41.98624658]
[1734884387441,1.5342,182.84,182.76,41.98624658]
[1734884387594,1.5342,182.84,182.77,41.98624658]
[1734884387902,6.6576,182.88,182.77,41.98624658]
[1734884388098,6.6576,182.88,182.71,1.6238]
[1734884388099,6.6576,182.88,182.75,41.98624658]
[1734884388309,6.6576,182.88,182.72,41.98624658]
[1734884388700,6.6576,182.88,182.71,41.98624658]
[1734884388905,10.9367,182.87,182.71,41.98624658]
[1734884389144,20.0,182.83,182.69,41.98624658]
[1734884389615,20.0,182.83,182.7,41.98624658]
[1734884390011,20.0,182.83,182.69,41.98624658]
[1734884390231,30.9396,182.83,182.7,41.98624658]
[1734884391226,30.9396,182.83,182.69,41.98624658]
[1734884391531,10.9403,182.81,182.67,41.98624658]
[1734884392708,10.9403,182.81,182.66,41.98624658]
[1734884393103,10.9403,182.81,182.67,41.98624658]
[1734884393327,10.9403,182.81,182.7,41.98624658]
[1734884393544,8.1414,182.82,182.71,41.98624658]
[1734884394207,19.0815,182.82,182.69,41.98624658]
[1734884394548,19.0815,182.82,182.7,41.98624658]
[1734884394914,19.0815,182.82,182.69,41.98624658]
[1734884395309,19.0815,182.82,182.7,41.98624658]
[1734884396010,8.1414,182.82,182.73,41.98624658]
[1734884396510,8.1414,182.82,182.72,20.0]
[1734884396748,8.1414,182.82,182.69,41.98624658]
[1734884397209,8.1414,182.82,182.71,41.98624658]
[1734884397410,8.1414,182.82,182.73,41.98624658]
[1734884397826,8.1414,182.82,182.74,41.98624658]
[1734884398034,6.5212,182.87,182.77,41.98624658]
[1734884398231,6.5212,182.87,182.78,41.98624658]
[1734884398629,6.5212,182.87,182.77,41.98624658]
[1734884398813,6.5212,182.87,182.78,41.98624658]
[1734884399312,6.5212,182.87,182.79,3.76454785]
[1734884399528,6.5212,182.87,182.79,46.57110586]
[1734884399734,6.5212,182.87,182.8,41.98624658]
[1734884399910,1.6202,182.88,182.8,3.76454785]
[1734884400445,1.6202,182.88,182.81,3.76454785]
[1734884400820,12.5567,182.88,182.77,41.98624658]
[1734884401333,23.776884,182.87,182.75,41.98624658]
[1734884401534,20.0,182.85,182.78,3.78342621]
[1734884401914,12.5567,182.88,182.79,3.78342621]
[1734884402436,21.6202,182.88,182.79,45.76967279]
[1734884402607,1.6202,182.88,182.81,41.98624658]
[1734884402812,6.5212,182.91,182.81,41.98624658]
[1734884403012,6.5212,182.91,182.82,45.76967279]
[1734884403234,1.6277,182.93,182.85,41.98624658]
[1734884403442,1.6277,182.93,182.86,41.98624658]
[1734884403740,6.165,182.96,182.88,41.98624658]
[1734884403949,1.6277,182.99,182.9,41.98624658]
[1734884404441,1.6277,182.99,182.91,3.78342621]
[1734884405425,1.6277,182.99,182.92,3.78342621]
[1734884405937,1.6277,182.99,182.93,3.78342621]
[1734884406436,52.7904,182.98,182.93,1.06612621]
[1734884406636,20.0,182.94,182.79,41.98624658]
[1734884406942,23.776884,182.93,182.81,41.98624658]
[1734884407525,23.776884,182.93,182.8,41.98624658]
[1734884407726,23.776884,182.93,182.81,41.98624658]
[1734884408420,23.776884,182.96,182.83,41.98624658]
[1734884408622,6.6446,182.97,182.86,41.98624658]
[1734884408929,17.5753,182.97,182.85,41.98624658]
[1734884409751,6.6446,182.97,182.85,41.98624658]
[1734884410041,6.6446,182.97,182.89,41.98624658]
[1734884410249,6.6446,183.02,182.89,41.98624658]
[1734884410542,6.6446,183.02,182.88,41.98624658]
[1734884410755,6.6446,183.02,182.89,41.98624658]
[1734884410918,6.6446,183.02,182.9,42.80613609]
[1734884411123,6.6446,183.02,182.91,41.98624658]
[1734884411632,6.6446,183.02,182.92,41.98624658]
[1734884412345,6.6446,183.02,182.93,41.98624658]
[1734884412821,6.6446,183.07,182.96,41.98624658]
[1734884413243,10.9236,183.09,182.97,41.98624658]
[1734884413451,10.9219,183.12,183.0,41.98624658]
[1734884413638,16.6446,183.13,183.01,41.98624658]
[1734884414320,16.6446,183.13,183.04,41.98624658]
[1734884414624,10.0,183.13,183.06,41.98624658]
[1734884414825,10.0,183.13,183.07,0.81910681]
[1734884415024,10.0,183.13,183.07,42.80535339]
[1734884415245,10.0,183.13,183.07,0.81910681]
[1734884415451,10.0,183.13,183.06,42.80536005]
[1734884415615,10.0,183.13,183.07,41.98624658]
[1734884415814,10.0,183.13,183.1,41.98624658]
[1734884416046,10.0,183.13,183.08,41.98624658]
[1734884416230,10.0,183.13,183.09,41.98624658]
[1734884416422,10.0,183.13,183.1,41.98624658]
[1734884416634,10.0,183.13,183.08,42.80518407]
[1734884416944,10.0,183.13,183.06,42.80520684]
[1734884417252,10.0,183.13,183.04,41.98624658]
[1734884417436,10.0,183.13,183.05,41.98624658]
[1734884417634,10.0,183.13,183.07,41.98624658]
[1734884417830,10.0,183.13,183.08,42.80526744]
[1734884418026,10.0,183.13,183.09,41.98624658]
[1734884418232,10.0,183.13,183.09,37.9962424]
[1734884418954,10.0,183.13,183.1,37.9962424]
[1734884419138,10.0,183.13,183.09,37.9962424]
[1734884419337,10.0,183.13,183.08,38.81526326]
[1734884420146,10.0,183.13,183.1,37.9962424]
[1734884420333,10.0,183.13,183.12,37.9962424]
[1734884421142,10.0,183.13,183.1,38.81507746]
[1734884421349,10.0,183.13,183.07,37.9962424]
[1734884421853,10.0,183.13,183.08,37.9962424]
[1734884422157,10.0,183.13,183.07,37.9962424]
[1734884423960,10.0,183.13,183.04,37.9962424]
[1734884424137,10.0,183.13,183.06,37.9962424]
[1734884424623,10.0,183.13,182.99,8.763492]
[1734884424624,10.0,183.13,183.09,37.9962424]
[1734884424828,10.0,183.13,183.11,37.9962424]
[1734884425036,10.0,183.13,183.12,37.9962424]
[1734884425844,10.0,183.13,183.11,37.9962424]
[1734884426039,9.5,183.13,183.09,37.9962424]
[1734884426345,9.5,183.13,183.07,37.9962424]
[1734884426737,9.5,183.13,183.06,37.9962424]
[1734884426933,9.5,183.13,183.05,37.9962424]
[1734884427132,9.5,183.13,183.02,14.47813478]
[1734884427346,9.5,183.13,183.09,37.9962424]
[1734884427653,9.5,183.13,183.07,37.9962424]
[1734884427951,9.5,183.13,183.06,37.9962424]
[1734884428161,9.5,183.13,183.07,37.9962424]
[1734884428752,9.5,183.13,183.05,37.9962424]
[1734884429828,9.5,183.13,183.06,37.9962424]
[1734884430156,9.5,183.13,183.07,37.9962424]
[1734884431353,9.5,183.13,183.08,37.9962424]
[1734884431553,9.5,183.13,183.05,37.9962424]
[1734884431759,9.5,183.13,183.03,37.9962424]
[1734884431935,6.1362,183.12,183.0,37.9962424]